[Event "Rapid Tournament (RAP)"]
[Site "Biel, Switzerland"]
[Date "2026.07.12"]
[Round "4.21"]
[White "Ranieri, Pierpaolo"]
[Black "Habibi, Ali"]
[Result "0-1"]
[TimeControl "15 + 5"]
[WhiteTitle "-"]
[BlackTitle "-"]
[WhiteFideId "893986"]
[BlackFideId "4604393"]
[WhiteElo "1891"]
[BlackElo "2187"]

1. d4 {[%clk 00:15:08]} {[%emt 00:00:01]} Nf6 {[%clk 00:15:05]} {[%emt
00:00:05]} 2. c4 {[%clk 00:15:11]} {[%emt 00:00:03]} c5 {[%clk 00:15:08]} 3. d5
{[%clk 00:15:13]} {[%emt 00:00:03]} g6 {[%clk 00:15:12]} 4. Nc3 {[%clk
00:15:14]} {[%emt 00:00:05]} Bg7 {[%clk 00:15:16]} 5. Nf3 {[%clk 00:15:09]}
{[%emt 00:00:09]} O-O {[%clk 00:15:18]} {[%emt 00:00:03]} 6. e4 {[%clk
00:15:12]} {[%emt 00:00:03]} d6 {[%clk 00:15:22]} 7. h3 {[%clk 00:14:57]}
{[%emt 00:00:19]} b5 {[%clk 00:15:25]} {[%emt 00:00:02]} 8. cxb5 {[%clk
00:14:56]} {[%emt 00:00:07]} a6 {[%clk 00:15:29]} 9. a4 {[%clk 00:14:44]}
{[%emt 00:00:17]} axb5 {[%clk 00:15:30]} {[%emt 00:00:04]} 10. Bxb5 {[%clk
00:14:46]} {[%emt 00:00:03]} Ba6 {[%clk 00:15:34]} {[%emt 00:00:01]} 11. Bxa6
{[%clk 00:14:38]} {[%emt 00:00:12]} Nxa6 {[%clk 00:15:34]} {[%emt 00:00:05]} 12.
O-O {[%emt 00:00:09]} Nb4 {[%clk 00:15:38]} 13. Re1 {[%clk 00:14:23]} {[%emt
00:00:17]} Nd7 {[%clk 00:15:39]} {[%emt 00:00:04]} 14. Ra3 {[%clk 00:14:06]}
{[%emt 00:00:23]} Nb6 {[%clk 00:15:41]} {[%emt 00:00:02]} 15. Nb5 {[%clk
00:13:30]} {[%emt 00:00:41]} Qd7 {[%clk 00:15:36]} {[%emt 00:00:10]} 16. b3
{[%clk 00:12:10]} {[%emt 00:01:26]} Rfb8 {[%clk 00:15:26]} {[%emt 00:00:15]} 17.
Bd2 {[%clk 00:11:32]} {[%emt 00:00:43]} Nd3 {[%clk 00:15:21]} {[%emt 00:00:10]}
18. Re3 {[%clk 00:11:22]} {[%emt 00:00:14]} Nb2 {[%clk 00:15:10]} {[%emt
00:00:16]} 19. Qc2 {[%clk 00:11:05]} {[%emt 00:00:22]} c4 {[%clk 00:15:14]}
{[%emt 00:00:01]} 20. Ra2 {[%clk 00:10:03]} {[%emt 00:01:08]} cxb3 {[%clk
00:15:16]} {[%emt 00:00:03]} 21. Rxb3 {[%clk 00:09:47]} {[%emt 00:00:21]} N6xa4
{[%clk 00:15:10]} {[%emt 00:00:10]} 22. Nc7 {[%clk 00:08:30]} {[%emt 00:01:22]}
Rc8 {[%clk 00:15:00]} {[%emt 00:00:15]} 23. Rb7 {[%clk 00:08:18]} {[%emt
00:00:17]} Rab8 {[%clk 00:14:52]} {[%emt 00:00:14]} 24. Rxb8 {[%clk 00:07:33]}
{[%emt 00:00:50]} Rxb8 {[%clk 00:14:54]} {[%emt 00:00:02]} 25. Na6 {[%clk
00:07:30]} {[%emt 00:00:09]} Rc8 {[%clk 00:14:55]} {[%emt 00:00:04]} 26. Qb3
{[%clk 00:07:27]} {[%emt 00:00:08]} h6 {[%clk 00:14:41]} {[%emt 00:00:19]} 27.
Nb4 {[%clk 00:07:06]} {[%emt 00:00:27]} Qb5 {[%clk 00:14:35]} {[%emt 00:00:09]}
28. Ra3 {[%clk 00:06:32]} {[%emt 00:00:40]} Nc5 {[%clk 00:14:25]} {[%emt
00:00:14]} 29. Qc2 {[%clk 00:06:10]} {[%emt 00:00:27]} Nc4 {[%clk 00:14:24]}
{[%emt 00:00:06]} 30. Ra7 {[%clk 00:05:46]} {[%emt 00:00:29]} Nxd2 {[%clk
00:14:26]} {[%emt 00:00:03]} 31. Qxd2 {[%clk 00:05:28]} {[%emt 00:00:23]} Bf8
{[%clk 00:13:50]} {[%emt 00:00:41]} 32. Nc6 {[%clk 00:05:05]} {[%emt 00:00:29]}
Qb1+ {[%clk 00:13:51]} {[%emt 00:00:03]} 33. Qe1 {[%clk 00:04:48]} {[%emt
00:00:22]} Qxe1+ {[%clk 00:13:50]} {[%emt 00:00:06]} 34. Nxe1 {[%clk 00:04:52]}
{[%emt 00:00:02]} Nxe4 {[%clk 00:13:51]} {[%emt 00:00:03]} 35. Nxe7+ {[%clk
00:04:46]} {[%emt 00:00:11]} Bxe7 {[%clk 00:13:54]} {[%emt 00:00:02]} 36. Rxe7
{[%clk 00:04:49]} {[%emt 00:00:02]} Nf6 {[%clk 00:13:55]} {[%emt 00:00:04]} 37.
Nf3 {[%clk 00:04:09]} {[%emt 00:00:46]} Rc1+ {[%clk 00:13:53]} {[%emt
00:00:07]} 38. Kh2 {[%clk 00:04:11]} {[%emt 00:00:03]} Rd1 {[%clk 00:13:56]}
{[%emt 00:00:02]} 39. g4 {[%clk 00:03:36]} {[%emt 00:00:40]} Rxd5 {[%clk
00:13:58]} {[%emt 00:00:03]} 40. Kg3 {[%clk 00:03:34]} {[%emt 00:00:06]} Kf8
{[%clk 00:14:02]} {[%emt 00:00:02]} 41. Ra7 {[%clk 00:03:04]} {[%emt 00:00:35]}
Ne4+ {[%clk 00:14:01]} {[%emt 00:00:06]} 42. Kg2 {[%clk 00:03:07]} {[%emt
00:00:01]} Ng5 {[%clk 00:13:51]} {[%emt 00:00:15]} 43. Nxg5 {[%clk 00:02:46]}
{[%emt 00:00:26]} hxg5 {[%clk 00:13:54]} {[%emt 00:00:02]} 44. Rd7 {[%clk
00:02:39]} {[%emt 00:00:12]} Kg7 {[%clk 00:13:55]} {[%emt 00:00:05]} 45. Kf3
{[%clk 00:02:36]} {[%emt 00:00:08]} Rd3+ {[%clk 00:13:51]} {[%emt 00:00:07]} 46.
Ke4 {[%clk 00:02:39]} {[%emt 00:00:03]} Rd1 {[%clk 00:13:45]} {[%emt 00:00:11]}
47. Ke3 {[%clk 00:02:17]} {[%emt 00:00:28]} Kf6 {[%clk 00:13:46]} {[%emt
00:00:03]} 48. Ke2 {[%clk 00:02:21]} {[%emt 00:00:02]} Rd5 {[%clk 00:13:49]}
{[%emt 00:00:01]} 49. Ke3 {[%clk 00:02:24]} {[%emt 00:00:02]} Ke6 {[%clk
00:13:52]} {[%emt 00:00:02]} 50. Rd8 {[%clk 00:02:28]} {[%emt 00:00:01]} Ke7
{[%clk 00:13:49]} {[%emt 00:00:09]} 51. Rg8 {[%clk 00:02:30]} {[%emt 00:00:03]}
Ra5 {[%clk 00:13:51]} {[%emt 00:00:03]} 52. f3 {[%clk 00:02:27]} {[%emt
00:00:08]} Ra2 {[%clk 00:13:42]} {[%emt 00:00:13]} 53. Rb8 {[%clk 00:02:27]}
{[%emt 00:00:06]} Rh2 {[%clk 00:13:45]} {[%emt 00:00:02]} 54. Rh8 {[%clk
00:02:29]} {[%emt 00:00:02]} d5 {[%clk 00:13:33]} {[%emt 00:00:17]} 55. Kd4
{[%clk 00:02:31]} {[%emt 00:00:04]} Rd2+ {[%clk 00:13:34]} {[%emt 00:00:03]} 56.
Ke3 {[%clk 00:02:34]} {[%emt 00:00:03]} Rd1 {[%clk 00:13:38]} {[%emt 00:00:01]}
57. Ke2 {[%clk 00:02:35]} {[%emt 00:00:03]} Ra1 {[%clk 00:13:37]} {[%emt
00:00:05]} 58. Ke3 {[%clk 00:02:34]} {[%emt 00:00:08]} Ra4 {[%clk 00:13:35]}
{[%emt 00:00:06]} 59. Rb8 {[%clk 00:02:30]} {[%emt 00:00:10]} Ra3+ {[%clk
00:13:34]} {[%emt 00:00:05]} 60. Kd4 {[%clk 00:01:54]} {[%emt 00:00:41]} Rxf3
{[%clk 00:13:36]} {[%emt 00:00:03]} 61. Rh8 {[%clk 00:01:58]} {[%emt 00:00:01]}
Ke6 {[%clk 00:13:03]} {[%emt 00:00:39]} 62. Re8+ {[%clk 00:02:01]} {[%emt
00:00:02]} Kd6 {[%clk 00:12:51]} {[%emt 00:00:16]} 63. Rd8+ {[%clk 00:02:03]}
{[%emt 00:00:03]} Ke7 {[%clk 00:12:43]} {[%emt 00:00:13]} 64. Rh8 {[%clk
00:02:03]} {[%emt 00:00:05]} f5 {[%clk 00:12:42]} {[%emt 00:00:05]} 65. Kxd5
{[%clk 00:02:05]} {[%emt 00:00:05]} Re3 {[%clk 00:12:41]} {[%emt 00:00:03]} 66.
gxf5 {[%clk 00:01:58]} {[%emt 00:00:15]} gxf5 {[%clk 00:12:43]} {[%emt
00:00:02]} 67. Rh5 {[%clk 00:02:01]} {[%emt 00:00:02]} Kf6 {[%clk 00:12:45]}
{[%emt 00:00:03]} 68. Kd4 {[%clk 00:01:41]} {[%emt 00:00:26]} Re1 {[%clk
00:12:42]} {[%emt 00:00:07]} 69. Rh8 {[%clk 00:01:27]} {[%emt 00:00:20]} Kg7
{[%clk 00:12:43]} {[%emt 00:00:03]} 70. Ra8 {[%clk 00:01:26]} {[%emt 00:00:07]}
Re4+ {[%clk 00:12:30]} {[%emt 00:00:15]} 71. Kd5 {[%clk 00:01:01]} {[%emt
00:00:32]} Re3 {[%clk 00:12:31]} {[%emt 00:00:04]} 72. Ra7+ {[%clk 00:00:43]}
{[%emt 00:00:24]} Kg6 {[%clk 00:12:34]} {[%emt 00:00:01]} 73. Ra6+ {[%clk
00:00:46]} {[%emt 00:00:02]} Kh5 {[%clk 00:12:38]} 74. Kd4 {[%clk 00:00:37]}
{[%emt 00:00:14]} Rxh3 {[%clk 00:12:39]} {[%emt 00:00:04]} 75. Ke5 {[%clk
00:00:42]} {[%emt 00:00:01]} Rf3 {[%clk 00:12:42]} {[%emt 00:00:02]} 76. Rf6
{[%clk 00:00:26]} {[%emt 00:00:21]} g4 {[%clk 00:12:45]} {[%emt 00:00:01]} 77.
Rf8 {[%clk 00:00:27]} {[%emt 00:00:05]} Kh4 {[%clk 00:12:47]} {[%emt 00:00:02]}
0-1

[Event "Rapid Tournament (RAP)"]
[Site "Biel, Switzerland"]
[Date "2026.07.12"]
[Round "4.22"]
[White "Varela Tavares, Goncalo"]
[Black "Gluckman, David"]
[Result "0-1"]
[TimeControl "15 + 5"]
[WhiteTitle "-"]
[BlackTitle "-"]
[WhiteFideId "1344773"]
[BlackFideId "14300010"]
[WhiteElo "1880"]
[BlackElo "2161"]

1. Nf3 {[%clk 00:15:08]} {[%emt 00:46:16]} g6 {[%clk 00:15:08]} {[%emt
00:00:02]} 2. d4 {[%clk 00:15:09]} {[%emt 00:00:05]} Bg7 {[%clk 00:15:12]} 3.
c4 {[%clk 00:15:13]} Nf6 {[%clk 00:15:16]} 4. Nc3 {[%clk 00:15:17]} {[%emt
00:00:01]} d5 {[%clk 00:15:20]} 5. e3 {[%clk 00:15:10]} {[%emt 00:00:12]} O-O
{[%clk 00:15:23]} {[%emt 00:00:02]} 6. cxd5 {[%clk 00:15:04]} {[%emt 00:00:11]}
Nxd5 {[%clk 00:15:27]} {[%emt 00:00:01]} 7. Be2 {[%clk 00:14:45]} {[%emt
00:00:23]} c5 {[%clk 00:15:26]} {[%emt 00:00:07]} 8. O-O {[%clk 00:14:29]}
{[%emt 00:00:21]} Nc6 {[%clk 00:15:27]} {[%emt 00:00:05]} 9. Bc4 {[%clk
00:10:18]} {[%emt 00:04:15]} Nb6 {[%clk 00:15:21]} {[%emt 00:00:11]} 10. Bb5
{[%clk 00:08:44]} {[%emt 00:01:38]} cxd4 {[%clk 00:15:21]} {[%emt 00:00:06]} 11.
exd4 {[%clk 00:08:38]} {[%emt 00:00:11]} Nxd4 {[%clk 00:15:23]} {[%emt
00:00:04]} 12. Nxd4 {[%clk 00:08:34]} {[%emt 00:00:08]} Qxd4 {[%clk 00:15:26]}
{[%emt 00:00:02]} 13. Qe2 {[%clk 00:08:31]} {[%emt 00:00:08]} Be6 {[%clk
00:13:33]} {[%emt 00:01:59]} 14. Be3 {[%clk 00:08:07]} {[%emt 00:00:27]} Qb4
{[%clk 00:12:06]} {[%emt 00:01:33]} 15. a3 {[%clk 00:07:40]} {[%emt 00:00:33]}
Qb3 {[%clk 00:12:09]} {[%emt 00:00:01]} 16. Rac1 {[%clk 00:07:01]} {[%emt
00:00:43]} Bc4 {[%clk 00:11:59]} {[%emt 00:00:16]} 17. Bxc4 {[%clk 00:06:22]}
{[%emt 00:00:44]} Nxc4 {[%clk 00:11:05]} {[%emt 00:01:00]} 18. Nd5 {[%clk
00:06:17]} {[%emt 00:00:09]} Nxe3 {[%clk 00:10:55]} {[%emt 00:00:16]} 19. Nxe7+
{[%clk 00:05:45]} {[%emt 00:00:36]} Kh8 {[%clk 00:10:59]} 20. Qxe3 {[%clk
00:05:18]} {[%emt 00:00:33]} Qxe3 {[%clk 00:10:55]} {[%emt 00:00:10]} 21. fxe3
{[%clk 00:05:21]} {[%emt 00:00:01]} Bxb2 {[%clk 00:10:51]} {[%emt 00:00:09]} 22.
Rb1 {[%clk 00:04:38]} {[%emt 00:00:48]} Bxa3 {[%clk 00:10:48]} {[%emt
00:00:08]} 23. Rxb7 {[%clk 00:04:40]} {[%emt 00:00:02]} Bxe7 {[%clk 00:09:22]}
{[%emt 00:01:32]} 24. Rxe7 {[%clk 00:04:42]} {[%emt 00:00:03]} Kg7 {[%clk
00:08:37]} {[%emt 00:00:50]} 25. Ra1 {[%clk 00:04:38]} {[%emt 00:00:09]} a5
{[%clk 00:08:40]} {[%emt 00:00:02]} 26. Re5 {[%clk 00:04:33]} {[%emt 00:00:09]}
a4 {[%clk 00:08:44]} {[%emt 00:00:02]} 27. Ra3 {[%clk 00:03:18]} {[%emt
00:01:20]} Rfb8 {[%clk 00:08:05]} {[%emt 00:00:44]} 28. Re4 {[%clk 00:03:08]}
{[%emt 00:00:15]} Rb1+ {[%clk 00:08:01]} {[%emt 00:00:09]} 29. Kf2 {[%clk
00:03:10]} {[%emt 00:00:03]} Rb2+ {[%clk 00:08:05]} {[%emt 00:00:01]} 30. Kf3
{[%clk 00:02:51]} {[%emt 00:00:24]} Rc8 {[%clk 00:08:03]} {[%emt 00:00:07]} 31.
h4 {[%clk 00:01:58]} {[%emt 00:00:58]} Rcc2 {[%clk 00:07:38]} {[%emt 00:00:30]}
32. g4 {[%clk 00:01:49]} {[%emt 00:00:15]} Rf2+ {[%clk 00:07:41]} {[%emt
00:00:02]} 33. Kg3 {[%clk 00:01:52]} {[%emt 00:00:01]} Rg2+ {[%clk 00:07:44]}
{[%emt 00:00:02]} 34. Kf4 {[%clk 00:01:48]} {[%emt 00:00:08]} Rh2 {[%clk
00:05:57]} {[%emt 00:01:53]} 35. Raxa4 {[%clk 00:01:33]} {[%emt 00:00:20]} Rxh4
{[%clk 00:05:55]} {[%emt 00:00:07]} 36. Kg3 {[%clk 00:01:08]} {[%emt 00:00:30]}
Rhh2 {[%clk 00:05:40]} {[%emt 00:00:20]} 37. Ra7 {[%clk 00:01:09]} {[%emt
00:00:05]} Rbf2 {[%clk 00:04:48]} {[%emt 00:00:57]} 38. Ree7 {[%clk 00:01:02]}
{[%emt 00:00:11]} Rhg2+ {[%clk 00:04:43]} {[%emt 00:00:10]} 39. Kh3 {[%clk
00:01:05]} {[%emt 00:00:01]} Rg1 {[%clk 00:04:42]} {[%emt 00:00:07]} 40. e4
{[%clk 00:01:04]} {[%emt 00:00:06]} Rf3+ {[%clk 00:04:35]} {[%emt 00:00:12]} 41.
Kh2 {[%clk 00:00:56]} {[%emt 00:00:13]} Rxg4 {[%clk 00:04:36]} {[%emt
00:00:04]} 42. e5 {[%clk 00:00:53]} {[%emt 00:00:09]} Rf5 {[%clk 00:04:29]}
{[%emt 00:00:11]} 43. e6 {[%clk 00:00:42]} {[%emt 00:00:16]} Rh5# {[%clk
00:04:33]} {[%emt 00:00:01]} 0-1

[Event "Rapid Tournament (RAP)"]
[Site "Biel, Switzerland"]
[Date "2026.07.12"]
[Round "4.23"]
[White "Harish, Neeraj"]
[Black "Zecirovic, Giacomo"]
[Result "0-1"]
[TimeControl "15 + 5"]
[WhiteTitle "-"]
[BlackTitle "-"]
[WhiteFideId "30958130"]
[BlackFideId "1339451"]
[WhiteElo "2140"]
[BlackElo "1886"]

1. e4 {[%clk 00:15:08]} {[%emt 00:55:26]} c6 {[%clk 00:15:09]} 2. d4 {[%clk
00:15:09]} {[%emt 00:00:04]} d5 {[%clk 00:15:13]} {[%emt 00:00:03]} 3. exd5
{[%clk 00:15:08]} {[%emt 00:00:04]} cxd5 {[%clk 00:15:16]} {[%emt 00:00:03]} 4.
Bd3 {[%clk 00:15:11]} Nf6 {[%clk 00:15:20]} {[%emt 00:00:02]} 5. c3 {[%clk
00:15:03]} {[%emt 00:00:12]} Nc6 {[%clk 00:15:19]} {[%emt 00:00:06]} 6. h3
{[%clk 00:15:04]} {[%emt 00:00:04]} g6 {[%clk 00:14:35]} {[%emt 00:00:48]} 7.
Nf3 {[%clk 00:15:03]} {[%emt 00:00:07]} Bg7 {[%clk 00:14:38]} {[%emt 00:00:02]}
8. O-O {[%clk 00:15:02]} {[%emt 00:00:06]} O-O {[%clk 00:14:41]} {[%emt
00:00:02]} 9. Bf4 {[%clk 00:14:50]} {[%emt 00:00:17]} a6 {[%clk 00:14:30]}
{[%emt 00:00:16]} 10. Nbd2 {[%clk 00:14:38]} {[%emt 00:00:17]} b5 {[%clk
00:14:10]} {[%emt 00:00:25]} 11. Re1 {[%clk 00:14:05]} {[%emt 00:00:38]} b4
{[%clk 00:13:36]} {[%emt 00:00:40]} 12. Ne5 {[%clk 00:12:25]} {[%emt 00:01:44]}
Nxe5 {[%clk 00:10:54]} {[%emt 00:02:47]} 13. dxe5 {[%clk 00:11:41]} {[%emt
00:00:50]} Nh5 {[%clk 00:10:53]} {[%emt 00:00:05]} 14. Bh2 {[%clk 00:11:35]}
{[%emt 00:00:11]} bxc3 {[%clk 00:10:55]} {[%emt 00:00:04]} 15. bxc3 {[%clk
00:11:37]} {[%emt 00:00:03]} Bh6 {[%clk 00:10:35]} {[%emt 00:00:25]} 16. Nf3
{[%clk 00:11:02]} {[%emt 00:00:40]} Qa5 {[%clk 00:10:01]} {[%emt 00:00:38]} 17.
c4 {[%clk 00:10:24]} {[%emt 00:00:43]} dxc4 {[%clk 00:09:32]} {[%emt 00:00:34]}
18. Bxc4 {[%clk 00:10:05]} {[%emt 00:00:25]} Rd8 {[%clk 00:09:16]} {[%emt
00:00:20]} 19. Qb3 {[%clk 00:09:57]} {[%emt 00:00:14]} e6 {[%clk 00:08:30]}
{[%emt 00:00:50]} 20. Rad1 {[%clk 00:07:40]} {[%emt 00:02:22]} Bd7 {[%clk
00:05:40]} {[%emt 00:02:55]} 21. Rd6 {[%clk 00:06:08]} {[%emt 00:01:37]} Ba4
{[%clk 00:05:11]} {[%emt 00:00:35]} 22. Qd3 {[%clk 00:05:44]} {[%emt 00:00:28]}
Bf8 {[%clk 00:05:10]} {[%emt 00:00:06]} 23. Rxd8 {[%clk 00:04:56]} {[%emt
00:00:53]} Rxd8 {[%clk 00:05:12]} {[%emt 00:00:03]} 24. Qe4 {[%clk 00:04:54]}
{[%emt 00:00:06]} Rc8 {[%clk 00:03:46]} {[%emt 00:01:32]} 25. Qe2 {[%clk
00:03:25]} {[%emt 00:01:35]} Qc3 {[%clk 00:03:22]} {[%emt 00:00:28]} 26. Bxa6
{[%clk 00:03:06]} {[%emt 00:00:25]} Rb8 {[%clk 00:03:26]} {[%emt 00:00:01]} 27.
Qc4 {[%clk 00:02:40]} {[%emt 00:00:31]} Qa5 {[%clk 00:03:01]} {[%emt 00:00:29]}
28. g4 {[%clk 00:02:02]} {[%emt 00:00:43]} Rb4 {[%clk 00:02:49]} {[%emt
00:00:17]} 29. Qe2 {[%clk 00:01:15]} {[%emt 00:00:53]} Nf4 {[%clk 00:02:48]}
{[%emt 00:00:06]} 30. Bxf4 {[%clk 00:01:06]} {[%emt 00:00:14]} Rxf4 {[%clk
00:02:51]} 31. Bd3 {[%clk 00:00:50]} {[%emt 00:00:21]} Rxf3 {[%clk 00:02:46]}
{[%emt 00:00:10]} 32. Be4 {[%clk 00:00:33]} {[%emt 00:00:22]} Ra3 {[%clk
00:02:29]} {[%emt 00:00:22]} 33. Bg2 {[%clk 00:00:24]} {[%emt 00:00:14]} Bb5
{[%clk 00:02:31]} {[%emt 00:00:04]} 34. Qd1 {[%clk 00:00:18]} {[%emt 00:00:11]}
Rxa2 {[%clk 00:02:33]} {[%emt 00:00:03]} 35. Bf1 {[%clk 00:00:15]} {[%emt
00:00:08]} Bxf1 {[%clk 00:02:31]} {[%emt 00:00:06]} 36. Rxf1 {[%clk 00:00:19]}
Qxe5 {[%clk 00:02:34]} {[%emt 00:00:02]} 37. Qb3 {[%clk 00:00:18]} {[%emt
00:00:06]} Ra1 {[%clk 00:02:36]} {[%emt 00:00:04]} 38. Rxa1 {[%clk 00:00:19]}
{[%emt 00:00:03]} Qxa1+ {[%clk 00:02:40]} {[%emt 00:00:01]} 39. Kg2 {[%clk
00:00:24]} Qa8+ {[%clk 00:02:41]} {[%emt 00:00:04]} 40. f3 {[%clk 00:00:27]}
{[%emt 00:00:02]} Qd5 {[%clk 00:02:34]} {[%emt 00:00:12]} 41. Qb8 {[%clk
00:00:29]} {[%emt 00:00:03]} Qd2+ {[%clk 00:02:37]} {[%emt 00:00:01]} 42. Kf1
{[%clk 00:00:32]} {[%emt 00:00:02]} Qd3+ {[%clk 00:02:32]} {[%emt 00:00:10]} 43.
Kg2 {[%clk 00:00:36]} {[%emt 00:00:02]} Qd5 {[%clk 00:02:05]} {[%emt 00:00:32]}
0-1

[Event "Rapid Tournament (RAP)"]
[Site "Biel, Switzerland"]
[Date "2026.07.12"]
[Round "4.24"]
[White "Materia, Matteo"]
[Black "Erne, Raphael"]
[Result "0-1"]
[TimeControl "15 + 5"]
[WhiteTitle "-"]
[BlackTitle "-"]
[WhiteFideId "45150575"]
[BlackFideId "1341928"]
[WhiteElo "1868"]
[BlackElo "2122"]

1. d4 {[%clk 00:15:09]} {[%emt 00:00:03]} d5 {[%clk 00:15:04]} {[%emt
00:00:03]} 2. Nf3 {[%clk 00:15:10]} {[%emt 00:00:04]} Nf6 {[%clk 00:15:05]}
{[%emt 00:00:04]} 3. c4 {[%clk 00:15:03]} {[%emt 00:00:13]} c6 {[%clk
00:15:03]} {[%emt 00:00:06]} 4. e3 {[%clk 00:14:50]} {[%emt 00:00:18]} Bf5
{[%clk 00:15:02]} {[%emt 00:00:05]} 5. Nc3 {[%clk 00:14:45]} {[%emt 00:00:11]}
e6 {[%clk 00:15:03]} {[%emt 00:00:04]} 6. Be2 {[%clk 00:14:33]} {[%emt
00:00:17]} Nbd7 {[%clk 00:14:57]} {[%emt 00:00:11]} 7. Nh4 {[%clk 00:14:13]}
{[%emt 00:00:25]} Be4 {[%clk 00:14:42]} {[%emt 00:00:20]} 8. f3 {[%clk
00:13:43]} {[%emt 00:00:36]} Bg6 {[%clk 00:14:43]} {[%emt 00:00:03]} 9. Nxg6
{[%clk 00:13:40]} {[%emt 00:00:09]} hxg6 {[%clk 00:14:45]} {[%emt 00:00:02]} 10.
e4 {[%clk 00:11:40]} {[%emt 00:02:05]} dxe4 {[%clk 00:14:34]} {[%emt 00:00:16]}
11. fxe4 {[%clk 00:11:42]} {[%emt 00:00:03]} e5 {[%clk 00:14:23]} {[%emt
00:00:16]} 12. d5 {[%clk 00:11:14]} {[%emt 00:00:34]} Bc5 {[%clk 00:13:24]}
{[%emt 00:01:04]} 13. Qd3 {[%clk 00:10:09]} {[%emt 00:01:10]} Qb6 {[%clk
00:12:50]} {[%emt 00:00:38]} 14. Qf3 {[%clk 00:08:52]} {[%emt 00:01:22]} Bd4
{[%clk 00:11:42]} {[%emt 00:01:12]} 15. Bd2 {[%clk 00:06:52]} {[%emt 00:02:06]}
Nc5 {[%clk 00:09:22]} {[%emt 00:02:25]} 16. O-O-O {[%clk 00:05:22]} {[%emt
00:01:35]} Ncxe4 {[%clk 00:07:26]} {[%emt 00:02:00]} 17. Rhf1 {[%clk 00:02:45]}
{[%emt 00:02:43]} Nxd2 {[%clk 00:06:43]} {[%emt 00:00:48]} 18. Rxd2 {[%clk
00:02:48]} {[%emt 00:00:03]} Be3 {[%clk 00:06:43]} {[%emt 00:00:05]} 19. Rfd1
{[%clk 00:02:13]} {[%emt 00:00:40]} O-O {[%clk 00:06:10]} {[%emt 00:00:37]} 20.
Kb1 {[%clk 00:01:59]} {[%emt 00:00:20]} Bxd2 {[%clk 00:06:11]} {[%emt
00:00:03]} 21. Rxd2 {[%clk 00:02:03]} {[%emt 00:00:01]} cxd5 {[%clk 00:05:44]}
{[%emt 00:00:33]} 22. cxd5 {[%clk 00:02:06]} {[%emt 00:00:02]} Rac8 {[%clk
00:05:05]} {[%emt 00:00:44]} 23. g4 {[%clk 00:01:02]} {[%emt 00:01:09]} Rxc3
{[%clk 00:04:40]} {[%emt 00:00:29]} 24. Qxc3 {[%clk 00:01:03]} {[%emt
00:00:04]} Ne4 {[%clk 00:04:44]} {[%emt 00:00:01]} 25. Qd3 {[%clk 00:01:06]}
{[%emt 00:00:02]} Nxd2+ {[%clk 00:04:46]} {[%emt 00:00:04]} 26. Qxd2 {[%clk
00:01:09]} Qg1+ {[%clk 00:04:38]} {[%emt 00:00:12]} 27. Kc2 {[%clk 00:00:49]}
{[%emt 00:00:25]} Rc8+ {[%clk 00:04:35]} {[%emt 00:00:09]} 28. Kb3 {[%clk
00:00:53]} {[%emt 00:00:01]} Qxh2 {[%clk 00:04:11]} {[%emt 00:00:29]} 29. Qd3
{[%clk 00:00:28]} {[%emt 00:00:31]} Qf4 {[%clk 00:03:43]} {[%emt 00:00:32]} 30.
a3 {[%clk 00:00:26]} {[%emt 00:00:07]} Qd4 {[%clk 00:03:24]} {[%emt 00:00:24]}
31. Qb5 {[%clk 00:00:16]} {[%emt 00:00:16]} Rd8 {[%clk 00:03:03]} {[%emt
00:00:26]} 32. Bc4 {[%clk 00:00:17]} {[%emt 00:00:04]} Qb6 {[%clk 00:02:37]}
{[%emt 00:00:31]} 33. Qxb6 {[%clk 00:00:11]} {[%emt 00:00:11]} axb6 {[%clk
00:02:42]} 34. Kb4 {[%clk 00:00:15]} {[%emt 00:00:01]} Rd6 {[%clk 00:02:30]}
{[%emt 00:00:16]} 35. a4 {[%clk 00:00:18]} {[%emt 00:00:02]} Kf8 {[%clk
00:02:23]} {[%emt 00:00:12]} 36. a5 {[%clk 00:00:08]} {[%emt 00:00:16]} bxa5+
{[%clk 00:02:16]} {[%emt 00:00:12]} 37. Kxa5 {[%clk 00:00:12]} f5 {[%clk
00:02:14]} {[%emt 00:00:06]} 38. gxf5 {[%clk 00:00:15]} {[%emt 00:00:01]} gxf5
{[%clk 00:02:18]} {[%emt 00:00:02]} 39. Kb5 {[%clk 00:00:19]} {[%emt 00:00:01]}
g5 {[%clk 00:02:11]} {[%emt 00:00:11]} 40. Kc5 {[%clk 00:00:23]} {[%emt
00:00:02]} Ke7 {[%clk 00:02:14]} {[%emt 00:00:02]} 41. b4 {[%clk 00:00:18]}
{[%emt 00:00:10]} g4 {[%clk 00:02:16]} {[%emt 00:00:03]} 42. Bd3 {[%clk
00:00:16]} {[%emt 00:00:07]} g3 {[%clk 00:02:16]} {[%emt 00:00:05]} 0-1